fUSD/lending_fUSD_20250211
["ID","MTS","AMOUNT","RATE_DAILY","PERIOD"]
[352760077,1739293850688,-503.31479453,0.00016985,2]
[352760078,1739293850697,-500.0,0.00016985,2]
[352760079,1739293850708,-500.0,0.00016985,2]
[352760080,1739293850718,-1000.0,0.00016985,2]
[352760081,1739293850727,-500.0,0.00016985,2]
[352760082,1739293850737,-1289.667222,0.00016985,2]
[352760083,1739293850749,-468.242778,0.00016985,2]
[352760084,1739293850758,-500.0,0.00016985,2]
[352760085,1739293850767,-542.92,0.00016985,2]
[352760086,1739293850777,-500.0,0.00016985,2]
[352760087,1739293850786,-500.0,0.00016985,2]
[352760088,1739293850795,-500.0,0.00016985,2]
[352760089,1739293850805,-500.0,0.00016985,2]
[352760090,1739293850814,-500.0,0.00016985,2]
[352760091,1739293850824,-181.26767399,0.00016985,2]
[352760092,1739293850835,-398.41232601,0.00016985,2]
[352760093,1739293850844,-51.35318929,0.00016985,2]
[352760094,1739293850855,-448.64681071,0.00016985,2]
[352760095,1739293850866,-212.39,0.00016985,2]
[352760096,1739293850876,-500.0,0.00016985,2]
[352760097,1739293850885,-500.0,0.00016985,2]
[352760098,1739293850895,-268.44318929,0.00016985,2]
[352760099,1739293851168,-500.0,0.00016473,2]
[352760100,1739293851178,-500.0,0.00016473,2]
[352760101,1739293851187,-500.0,0.00016574,2]
[352760102,1739293851197,-500.0,0.00016574,2]
[352760103,1739293851208,-500.0,0.0001661,2]
[352760104,1739293851218,-500.0,0.0001661,2]
[352760105,1739293851232,-500.0,0.00016711,2]
[352760106,1739293851242,-500.0,0.00016747,2]
[352760107,1739293851252,-582.84,0.00016747,2]
[352760108,1739293851261,-231.55681071,0.00016985,2]
[352760109,1739293851271,-500.0,0.00016985,2]
[352760110,1739293851281,-358.55606133,0.00016985,2]
[352760111,1739293851290,-500.0,0.00016986,2]
[352760112,1739293851299,-500.0,0.00016986,2]
[352760113,1739293851311,-500.0,0.00016986,2]
[352760114,1739293851322,-500.0,0.00016986,2]
[352760115,1739293851331,-500.0,0.00016986,2]
[352760116,1739293851340,-969.28,0.00016986,2]
[352760117,1739293851349,-500.0,0.00016986,2]
[352760118,1739293851359,-500.0,0.00016986,2]
[352760119,1739293851368,-500.0,0.00016986,2]
[352760120,1739293851377,-424.29508511,0.00016986,2]
[352760121,1739293851389,-75.70491489,0.00016986,2]
[352760122,1739293851399,-873.83,0.00016986,2]
[352760123,1739293851408,-14.99365011,0.00016986,2]
[352760124,1739293851420,-485.00634989,0.00016986,2]
[352760125,1739293851429,-500.0,0.00016986,2]
[352760126,1739293851439,-500.0,0.00016986,2]
[352760127,1739293851447,-500.0,0.00016986,2]
[352760128,1739293851459,-500.0,0.00016986,2]
[352760129,1739293851468,-500.0,0.00016986,2]
[352760130,1739293851477,-500.0,0.00016986,2]
[352760131,1739293851486,-500.0,0.00016986,2]
[352760132,1739293851495,-717.53,0.00016986,2]
[352760133,1739293851505,-500.0,0.00016986,2]
[352760134,1739293851514,-500.0,0.00016986,2]
[352760135,1739293851523,-500.0,0.00016986,2]
[352760136,1739293851532,-521.07,0.00016986,2]
[352760137,1739293851542,-500.0,0.00016986,2]
[352760138,1739293851551,-500.0,0.00016986,2]
[352760139,1739293851560,-500.0,0.00016986,2]
[352760140,1739293851570,-500.0,0.00016986,2]
[352760141,1739293851579,-500.0,0.00016986,2]
[352760142,1739293851588,-500.0,0.00016986,2]
[352760143,1739293851597,-500.0,0.00016986,2]
[352760144,1739293851607,-500.0,0.00016986,2]
[352760145,1739293851616,-500.0,0.00016986,2]
[352760146,1739293851625,-500.0,0.00016986,2]
[352760147,1739293851634,-500.0,0.00016986,2]
[352760148,1739293851643,-500.0,0.00016986,2]
[352760149,1739293851654,-500.0,0.00016986,2]
[352760150,1739293851663,-500.0,0.00016986,2]
[352760151,1739293851673,-500.0,0.00016986,2]
[352760152,1739293851682,-500.0,0.00016986,2]
[352760153,1739293851691,-567.83,0.00016986,2]
[352760154,1739293851700,-500.0,0.00016986,2]
[352760155,1739293851711,-650.0,0.00017,2]
[352760156,1739293851721,-500.0,0.00017021,2]
[352760157,1739293851730,-500.0,0.00017021,2]
[352760158,1739293851740,-693.22,0.00017021,2]
[352760159,1739293851749,-500.0,0.00017021,2]
[352760160,1739293851758,-500.0,0.00017021,2]
[352760161,1739293851767,-567.92,0.00017021,2]
[352760162,1739293851776,-1128.9,0.00017021,2]
[352760163,1739293851785,-500.0,0.00017021,2]
[352760164,1739293851794,-501.73,0.00017021,2]
[352760165,1739293851803,-587.09,0.00017021,2]
[352760166,1739293851812,-500.0,0.00017021,2]
[352760167,1739293851821,-527.77,0.00017021,2]
[352760168,1739293851830,-581.2,0.00017021,2]
[352760169,1739293851839,-519.35,0.00017021,2]
[352760170,1739293851848,-500.0,0.00017021,2]
[352760171,1739293851857,-662.47,0.00017021,2]
[352760172,1739293851866,-500.0,0.00017021,2]
[352760173,1739293851875,-500.0,0.00017021,2]
[352760174,1739293851885,-500.0,0.00017021,2]
[352760175,1739293851894,-732.93,0.00017021,2]
[352760176,1739293851903,-28.98132527,0.00017021,2]
[352760177,1739293851915,-310.72077211,0.00017021,2]
[352760178,1739293851936,-394.81705003,0.00016473,2]
[352760179,1739293852200,-105.18294997,0.00016473,2]
[352760180,1739293852212,-500.0,0.00016473,2]
[352760181,1739293852225,-188.64453292,0.00016574,2]
[352760182,1739293852254,-500.0,0.00016473,2]
[352760183,1739293852267,-87.8955173,0.00016574,2]
[352760184,1739293854442,2923.0,0.0002,120]
[352760185,1739293863242,1000.0,0.0002,120]
[352760186,1739293893476,6963.6084,8.699e-05,2]
[352760187,1739293916025,1309.3134,8.699e-05,2]
[352760188,1739293954723,1195.988787,8.699e-05,2]
[352760189,1739293954745,1344.875813,8.699e-05,2]
[352760194,1739294305350,301.0,0.0002,120]
[352760195,1739294415285,8655.124187,8.836e-05,2]
[352760196,1739294415306,8733.332913,8.836e-05,2]
[352760202,1739294470030,1266.667087,8.699e-05,2]
[352760203,1739294470052,8733.332913,8.699e-05,2]
[352760204,1739294705151,1987.0,0.00020447,120]
[352760207,1739294892116,1266.667087,1.6e-05,2]
[352760208,1739294892140,10000.0,1.6e-05,2]
[352760209,1739294892166,10000.0,1.6e-05,2]
[352760210,1739294892195,10000.0,1.6e-05,2]
[352760211,1739294892220,1964.20985063,1.6e-05,2]
[352760214,1739294924486,-302.17320406,9e-05,3]
[352760217,1739294983240,4293.404,8.836e-05,2]
[352760223,1739295007834,-1000.0,8.851e-05,2]
[352760224,1739295007858,-2243.0836,8.851e-05,2]
[352760225,1739295007881,-669.47883399,8.972e-05,2]
[352760226,1739295007903,-300.0,8.972e-05,2]
[352760227,1739295007926,-150.0,8.972e-05,2]
[352760228,1739295007949,-5637.43756601,8.973e-05,2]
[352760229,1739295009025,-10000.0,8.973e-05,2]
[352760230,1739295010335,-10000.0,8.973e-05,2]
[352760231,1739295011467,-9901.96543399,8.973e-05,2]
[352760232,1739295011491,-98.03456601,8.973e-05,2]
[352760233,1739295020887,-1852.0,8.973e-05,2]
[352760242,1739295031707,-0.11273399,8.973e-05,2]
[352760243,1739295031718,-936.56452255,9.478e-05,2]
[352760244,1739295031729,-18.35781057,9.478e-05,2]
[352760245,1739295031739,-544.96493289,9.478e-05,2]
[352760246,1739295031763,-409.95740023,9.478e-05,2]
[352760247,1739295031772,-205.0,9.8e-05,2]
[352760248,1739295031782,-757.5675998,9.828e-05,2]
[352760249,1739295031820,-437.54085145,9.828e-05,2]
[352760250,1739295031830,-420.0,9.869e-05,2]
[352760251,1739295031839,-500.0,9.973e-05,2]
[352760252,1739295031848,-500.0,9.999e-05,2]
[352760253,1739295031857,-500.0,9.999e-05,2]
[352760254,1739295031866,-500.0,9.999e-05,2]
[352760255,1739295031876,-500.0,9.999e-05,2]
[352760256,1739295031885,-438.40559942,9.999e-05,2]
[352760257,1739295031945,-61.59440058,9.999e-05,2]
[352760258,1739295031954,-207.74201727,9.999e-05,2]
[352760259,1739295031964,-504.04997152,9.999e-05,2]
[352760260,1739295031973,-500.0,9.999e-05,2]
[352760261,1739295031984,-500.0,9.999e-05,2]
[352760262,1739295031993,-500.0,9.999e-05,2]
[352760263,1739295032003,-500.0,9.999e-05,2]
[352760264,1739295032012,-500.0,9.999e-05,2]
[352760265,1739295032022,-500.0,9.999e-05,2]
[352760266,1739295032031,-545.05740036,9.999e-05,2]
[352760267,1739295032043,-66.40600549,9.999e-05,2]
[352760268,1739295032052,-588.8495498,9.999e-05,2]
[352760269,1739295032062,-395.91561164,9.999e-05,2]
[352760270,1739295032071,-500.0,9.999e-05,2]
[352760271,1739295032080,-500.0,9.999e-05,2]
[352760272,1739295032089,-500.0,9.999e-05,2]
[352760280,1739295032341,-500.0,9.999e-05,2]
[352760281,1739295032351,-500.0,9.999e-05,2]
[352760282,1739295032360,-500.0,9.999e-05,2]
[352760283,1739295032370,-500.0,9.999e-05,2]
[352760284,1739295032380,-500.0,9.999e-05,2]
[352760285,1739295032389,-500.0,9.999e-05,2]
[352760286,1739295032399,-500.0,9.999e-05,2]
[352760287,1739295032408,-500.0,9.999e-05,2]
[352760288,1739295032417,-500.0,9.999e-05,2]
[352760289,1739295032427,-500.0,9.999e-05,2]
[352760290,1739295032437,-500.0,9.999e-05,2]
[352760291,1739295032446,-500.0,9.999e-05,2]
[352760292,1739295032456,-500.0,9.999e-05,2]
[352760293,1739295032465,-500.0,9.999e-05,2]
[352760294,1739295032475,-500.0,9.999e-05,2]
[352760295,1739295032484,-500.0,9.999e-05,2]
[352760296,1739295032494,-500.0,9.999e-05,2]
[352760297,1739295032503,-500.0,9.999e-05,2]
[352760298,1739295032512,-493.08757096,9.999e-05,2]
[352760299,1739295032522,-500.0,9.999e-05,2]
[352760300,1739295032531,-500.0,9.999e-05,2]
[352760301,1739295032540,-500.0,9.999e-05,2]
[352760302,1739295032550,-500.0,9.999e-05,2]
[352760303,1739295032559,-500.0,9.999e-05,2]
[352760304,1739295032568,-500.0,9.999e-05,2]
[352760305,1739295032578,-500.0,9.999e-05,2]
[352760306,1739295032587,-500.0,9.999e-05,2]
[352760307,1739295032596,-500.0,9.999e-05,2]
[352760308,1739295032606,-500.0,9.999e-05,2]
[352760310,1739295032619,-500.0,9.999e-05,2]
[352760312,1739295032632,-500.0,9.999e-05,2]
[352760313,1739295032641,-300.0,9.999e-05,2]
[352760315,1739295032651,-45274.74790695,0.0001,2]
[352760328,1739295037422,-378.37856411,0.0001,2]
[352760330,1739295037586,-1317.82607999,0.0001,2]
[352760331,1739295037599,-135764.38181543,0.0001,2]
[352760332,1739295037654,-169388.01437771,0.0001,2]
[352760333,1739295037666,-1172.69121503,0.0001,2]
[352760334,1739295037677,-466059.19122027,0.0001,2]
[352760335,1739295037688,-4047.65970989,0.0001,2]
[352760336,1739295037699,-37035.9556633,0.00010073,7]
[352760337,1739295037711,-33930.5658667,0.00010073,7]
[352760340,1739295037722,-357.53236094,0.00010073,2]
[352760342,1739295037744,-496.45,0.00010073,2]
[352760344,1739295037754,-169.94,0.00010137,2]
[352760346,1739295037764,-1000.0,0.00010521,2]
[352760348,1739295037774,-2000.0,0.00010762,2]
[352760350,1739295037784,-437.94962175,0.00010827,2]
[352760352,1739295037794,-5166.0528887,0.00010832,2]
[352760354,1739295037804,-5166.0528887,0.00010833,2]
[352760356,1739295037814,-3825.05963615,0.00010835,2]
[352760358,1739295037824,-5168.95012683,0.00010837,2]
[352760360,1739295037834,-3825.05963615,0.00010837,2]
[352760362,1739295037844,-437.94962175,0.00010846,2]
[352760364,1739295037854,-167.0,0.00010856,2]
[352760366,1739295037864,-161.49,0.00010856,2]
[352760369,1739295037875,-5168.95012683,0.00010862,2]
[352760372,1739295037886,-5166.0528887,0.00010864,2]
[352760375,1739295037896,-437.94962175,0.00010868,2]
[352760378,1739295037906,-3825.05963615,0.00010872,2]
[352760381,1739295037917,-3825.05963615,0.00010873,2]
[352760384,1739295037927,-118796.96104463,0.0001088,2]
[352760387,1739295037938,-5168.95012683,0.00010881,2]
[352760389,1739295037948,-437.94962175,0.00010886,2]
[352760392,1739295037959,-5166.0528887,0.00010888,2]
[352760393,1739295037968,-5168.95012683,0.00010898,2]
[352760395,1739295037978,-162.06310464,0.000109,2]
[352760397,1739295037987,-150.64,0.00011,2]
[352760399,1739295037996,-150.64,0.00011,2]
[352760402,1739295038011,-150.64,0.00011089,2]
[352760404,1739295038022,-23657.40603137,0.00011099,2]
[352760406,1739295038031,-23657.40603134,0.00011099,2]
[352760408,1739295038041,-165.96,0.000114,2]
[352760410,1739295038050,-193.62,0.00011535,2]
[352760411,1739295038060,-250.0,0.0001173,2]
[352760414,1739295038073,-1233.59,0.0001178,2]
[352760416,1739295038082,-23657.40603134,0.00011796,2]
[352760418,1739295038092,-2000.0,0.00011849,2]
[352760420,1739295038102,-2044.12,0.00012552,2]
[352760422,1739295038116,-787.64,0.0001267,2]
[352760424,1739295038127,-150.64,0.00012733,2]
[352760426,1739295038138,-150.98230524,0.00012743,3]
[352760428,1739295038148,-23657.40603134,0.00012743,2]
[352760430,1739295038157,-400.0,0.000129,4]
[352760432,1739295038167,-23900.0,0.00012907,2]
[352760434,1739295038177,-150.64,0.0001299,2]
[352760436,1739295038186,-150.64,0.0001299,2]
[352760438,1739295038195,-150.64,0.0001299,2]
[352760440,1739295038205,-150.64,0.0001299,2]
[352760442,1739295038214,-150.64,0.0001299,2]
[352760444,1739295038223,-150.64,0.0001299,2]
[352760446,1739295038232,-150.64,0.0001299,2]
[352760448,1739295038242,-150.64,0.0001299,2]
[352760450,1739295038252,-150.64,0.0001299,2]
[352760452,1739295038261,-150.64,0.0001299,2]
[352760454,1739295038271,-150.64,0.0001299,2]
[352760456,1739295038281,-150.64,0.0001299,2]
[352760458,1739295038291,-150.64,0.0001299,2]
[352760460,1739295038301,-150.64,0.0001299,2]
[352760462,1739295038311,-218958.56336529,0.00013,3]
[352760466,1739295038335,-699.02960093,0.00013,3]
[352760592,1739295039561,-290.02909303,0.00013,3]
[352760599,1739295039620,-267.78354469,0.00013,3]
[352760601,1739295039634,-4816.66557169,0.00013,3]
[352760652,1739295045634,-435.4810122,0.0001,2]
[352760653,1739295045645,-162.06310464,0.00012833,2]
[352760654,1739295045654,-4957.95452266,0.00013,3]
[352760655,1739295045745,-798.95208668,0.00013,3]
[352760656,1739295045756,-598.62832,0.00013,3]
[352760657,1739295045768,-1452.0,0.00013,3]
[352760658,1739295045805,-48286.49242938,0.00013,3]
[352760661,1739295063913,1186.9747,8.836e-05,2]
[352760662,1739295070779,339.5404,8.699e-05,2]
[352760664,1739295166213,179.598,8.119e-05,2]
[352760665,1739295176831,2036.27304937,8.256e-05,2]
[352760666,1739295176852,3364.65455063,8.256e-05,2]
[352760667,1739295228408,5784.2237,8.699e-05,2]
[352760668,1739295256761,-500.0,8.851e-05,2]
[352760669,1739295256784,-5000.0,8.973e-05,2]
[352760670,1739295256806,-4500.0,8.973e-05,2]
[352760671,1739295257447,-10000.0,8.973e-05,2]
[352760672,1739295257942,-10000.0,8.973e-05,2]
[352760673,1739295258445,-10000.0,8.973e-05,2]
[352760674,1739295343315,851.12174937,8.836e-05,2]
[352760675,1739295343337,6121.20395063,8.836e-05,2]
[352760676,1739295364370,3878.79604937,8.836e-05,2]
[352760677,1739295364392,10000.0,8.836e-05,2]
[352760678,1739295364416,10000.0,8.836e-05,2]
[352760679,1739295364437,10000.0,8.836e-05,2]
[352760680,1739295364459,1919.34025063,8.836e-05,2]
[352760681,1739295367954,970.6207,8.836e-05,2]
[352760682,1739295398214,2008.6839,8.699e-05,2]
[352760683,1739295408008,312.4559,8.699e-05,2]
[352760686,1739295447943,1342.9371,8.699e-05,2]
[352760687,1739295454185,733.2751,8.699e-05,2]
[352760688,1739295487956,1000.0,0.000136,30]
[352760689,1739295493877,1397.1313,8.699e-05,2]
[352760690,1739295567979,1315.55574937,8.836e-05,2]
[352760691,1739295568000,411.91845063,8.836e-05,2]
[352760692,1739295580270,2010.3439,8.699e-05,2]
[352760693,1739295613959,1967.014,8.836e-05,2]
[352760694,1739295622819,5610.72364937,8.699e-05,2]
[352760695,1739295622846,8057.51175063,8.699e-05,2]
[352760703,1739295755542,1942.48824937,8.836e-05,2]
[352760704,1739295755565,10000.0,8.836e-05,2]
[352760705,1739295755585,8105.62945063,8.836e-05,2]
[352760714,1739296144579,1894.37054937,8.836e-05,2]
[352760715,1739296144600,10000.0,8.836e-05,2]
[352760716,1739296144621,10000.0,8.836e-05,2]
[352760717,1739296144642,10000.0,8.836e-05,2]
[352760718,1739296144670,8105.62945063,8.836e-05,2]
[352760719,1739296214182,-500.0,8.851e-05,2]
[352760720,1739296214206,-300.0,8.972e-05,2]
[352760721,1739296214228,-6368.9154,8.973e-05,2]
[352760722,1739296214251,-511.0343,8.973e-05,2]
[352760723,1739296214272,-222.1377493,8.973e-05,2]
[352760724,1739296214295,-2097.9125507,8.973e-05,2]
[352760726,1739296231820,-2044.7135224,8.851e-05,2]
[352760727,1739296231832,-455.2864776,8.851e-05,2]
[352760728,1739296231841,-236.97367382,8.973e-05,2]
[352760729,1739296231875,-442.79999998,8.973e-05,2]
[352760730,1739296231931,-1013.2907262,8.973e-05,2]
[352760731,1739296231941,-170.83172024,8.973e-05,2]
[352760732,1739296231951,-420.0,9.869e-05,2]
[352760733,1739296231960,-150.0,9.973e-05,2]
[352760734,1739296231969,-3086.37755356,0.0001,2]
[352760735,1739296231981,-7434.628,0.0001,2]
[352760736,1739296231993,-16099.18793326,0.0001,2]
[352760737,1739296232002,-495.73,0.00010118,2]
[352760738,1739296232012,-161.4,0.00010137,2]
[352760739,1739296232022,-222.13774929,0.00010471,2]
[352760740,1739296232034,-150.49,0.000105,2]
[352760741,1739296232044,-748.25,0.00011067,2]
[352760742,1739296232053,-29.92615095,0.00011103,2]
[352760743,1739296232071,-137.83384905,0.00011103,2]
[352760744,1739296232080,-2000.0,0.00011265,2]
[352760745,1739296232091,-157.8,0.0001139,2]
[352760746,1739296232104,-150.0,0.000114,2]
[352760747,1739296232114,-243.98856095,0.00011509,2]
[352760748,1739296232126,-756.01143905,0.00011509,2]
[352760749,1739296232135,-3813.27,0.00011913,2]
[352760750,1739296232144,-1798.74,0.00011996,2]
[352760751,1739296232153,-150.0,0.00011999,2]
[352760752,1739296232163,-41649.20023248,0.00012,2]
[352760753,1739296232174,-17248.98976752,0.00012,2]
[352760754,1739296232183,-222.13774929,0.00012068,2]
[352760755,1739296232192,-23900.0,0.00012168,2]
[352760756,1739296232201,-439.69,0.00012436,2]
[352760757,1739296232211,-3059.09,0.00012559,2]
[352760759,1739296232220,-6526.91279446,0.00012559,2]
[352760770,1739296232446,-10516.07673229,0.00012559,2]
[352760772,1739296232458,-7237.57638648,0.00012559,2]
[352760774,1739296232468,-611.7299315,0.00012559,2]
[352760777,1739296232479,-336.52,0.00012559,2]
[352760779,1739296232490,-622.1302618,0.00012559,2]
[352760781,1739296232501,-392.0635844,0.00012559,2]
[352760783,1739296232511,-496.769991,0.00012559,2]
[352760785,1739296232522,-385.39492304,0.00012559,2]
[352760788,1739296232533,-433.25400006,0.00012559,2]
[352760790,1739296232543,-348.816881,0.00012559,2]
[352760792,1739296232554,-321.51096328,0.00012559,2]
[352760794,1739296232565,-269.46,0.00012559,2]
[352760816,1739296237700,-468.76,0.000114,2]
[352760817,1739296237710,-519.24,0.00012559,2]
[352760818,1739296237721,-334.91366441,0.00012559,2]
[352760819,1739296237756,-452.32910566,0.00012559,2]
[352760820,1739296237814,-45900.22268248,0.00012559,2]
[352760821,1739296237826,-250.0,0.00012595,2]
[352760822,1739296237837,-1032.26,0.00012636,2]
[352760823,1739296237846,-197.38,0.00012728,2]
[352760824,1739296237856,-2751.0,0.00012757,2]
[352760825,1739296237866,-431.83725236,0.00012873,2]
[352760826,1739296237876,-14194.44361884,0.000129,2]
[352760827,1739296237886,-163.66232729,0.000129,2]
[352760828,1739296237896,-1000.0,0.00012947,2]
[352760829,1739296237905,-167.76,0.00012953,2]
[352760830,1739296237915,-3523.6541463,0.0001299,2]
[352760831,1739296237931,-476.3458537,0.0001299,2]
[352760833,1739296237940,-53.13221669,0.00012995,2]
[352760834,1739296237953,-422.36894925,0.00012995,2]
[352760835,1739296237965,-14.63883406,0.00012995,2]
[352760836,1739296237976,-430.87572115,0.00012999,2]
[352760837,1739296237987,-120.14162512,0.00012999,2]
[352760838,1739296237996,-176.53883887,0.00012999,2]
[352760840,1739296238006,-241.78144434,0.00012999,2]
[352760843,1739296238031,-3.67605069,0.00012999,2]
[352760845,1739296238043,-500.0,0.00012999,2]
[352760847,1739296238053,-500.0,0.00012999,2]
[352760849,1739296238063,-500.0,0.00012999,2]
[352760851,1739296238075,-326.48654274,0.00012999,2]
[352761019,1739296239797,-173.51345726,0.00012999,2]
[352761021,1739296239807,-500.0,0.00012999,2]
[352761023,1739296239816,-500.0,0.00012999,2]
[352761025,1739296239825,-106.05474987,0.00012999,2]
[352761027,1739296239836,-393.94525013,0.00012999,2]
[352761029,1739296239845,-500.0,0.00012999,2]
[352761032,1739296239855,-459.29265209,0.00012999,2]
[352761038,1739296239906,-500.0,0.00012247,2]
[352761040,1739296239916,-40.70734791,0.00012999,2]
[352761042,1739296239926,-500.0,0.00012999,2]
[352761044,1739296239935,-500.0,0.00012999,2]
[352761046,1739296239944,-500.0,0.00012999,2]
[352761047,1739296239954,-500.0,0.00012999,2]
[352761048,1739296239963,-500.0,0.00012999,2]
[352761049,1739296239973,-412.73738744,0.00012999,2]
[352761050,1739296239994,-87.26261256,0.00012999,2]
[352761051,1739296240004,-329.3087571,0.00012999,2]
[352761052,1739296240014,-381.61593806,0.00012999,2]
[352761094,1739296240461,-118.38406194,0.00012999,2]
[352761096,1739296240470,-500.0,0.00012999,2]
[352761098,1739296240480,-122.16557656,0.00012999,2]
[352761100,1739296240491,-377.83442344,0.00012999,2]
[352761102,1739296240501,-500.0,0.00012999,2]
[352761104,1739296240510,-363.46381183,0.00012999,2]
[352761107,1739296240522,-136.53618817,0.00012999,2]
[352761109,1739296240531,-376.34021898,0.00012999,2]
[352761111,1739296240546,-123.65978102,0.00012999,2]
[352761113,1739296240555,-500.0,0.00012999,2]
[352761115,1739296240564,-500.0,0.00012999,2]
[352761117,1739296240575,-500.0,0.00012999,2]
[352761119,1739296240584,-500.0,0.00012999,2]
[352761121,1739296240593,-500.0,0.00012999,2]
[352761123,1739296240602,-134.26208998,0.00012999,2]
[352761126,1739296240615,-365.73791002,0.00012999,2]
[352761128,1739296240624,-500.0,0.00012999,2]
[352761130,1739296240634,-31.08706609,0.00012999,2]
[352761132,1739296240646,-383.57266039,0.00012999,2]
[352761134,1739296240656,-85.34027352,0.00012999,2]
[352761136,1739296240665,-500.0,0.00012999,2]
[352761138,1739296240674,-500.0,0.00012999,2]
[352761140,1739296240683,-500.0,0.00012999,2]
[352761142,1739296240692,-463.77881386,0.00012999,2]
[352761144,1739296240702,-588.8495498,0.00012999,2]
[352761146,1739296240711,-500.0,0.00012999,2]
[352761148,1739296240719,-2482.03436176,0.00013,2]
[352761150,1739296240730,-2311.65486735,0.00013,2]
[352761152,1739296240741,-22544.91226869,0.00013,2]
[352761379,1739296245949,-631.0339,0.00013,2]
[352761380,1739296246007,-62112.51321962,0.00013,2]
[352761381,1739296246018,-9759.47999999,0.00013,2]
[352761382,1739296246063,-334.58903684,0.00013,2]
[352761383,1739296246075,-1562.74344531,0.00013,2]
[352761396,1739296721768,10000.0,8.836e-05,2]
[352761397,1739296721790,10000.0,8.836e-05,2]
[352761398,1739296721812,10000.0,8.836e-05,2]
[352761399,1739296721833,10000.0,8.836e-05,2]
[352761400,1739296721854,10000.0,8.836e-05,2]
[352761401,1739296721877,10000.0,8.836e-05,2]
[352761402,1739297009751,-500.0,8.851e-05,2]
[352761403,1739297009776,-256.9164,8.851e-05,2]
[352761404,1739297009798,-481.7313,8.973e-05,2]
[352761405,1739297009822,-791.05,9.296e-05,2]
[352761406,1739297009844,-2181.19,0.00011213,2]
[352761407,1739297009866,-421.89,0.000114,2]
[352761408,1739297009888,-791.05,0.00011559,2]
[352761409,1739297009910,-5244.0,0.000119,3]
[352761410,1739297009931,-182.890396,0.00012039,2]
[352761411,1739297009952,-250.0,0.00012108,2]
[352761412,1739297009973,-5554.0,0.000124,5]
[352761413,1739297009995,-431.83725236,0.00012661,2]
[352761414,1739297010016,-4000.0,0.0001287,2]
[352761415,1739297010042,-824.7564747,0.000129,2]
[352761416,1739297010064,-150.0,0.00012953,2]
[352761417,1739297010087,-150.0,0.00012999,2]
[352761418,1739297010110,-494.16,0.00013,2]
[352761419,1739297010133,-61163.17031103,0.00013,2]
[352761420,1739297010155,-550.0,0.00013,2]
[352761421,1739297010176,-200.0,0.00013,2]
[352761422,1739297010199,-491.61,0.00013,2]
[352761423,1739297010222,-14889.74786591,0.0001312,2]
[352761424,1739297010765,-9010.25213409,0.0001312,2]
[352761425,1739297010788,-29264.71,0.00013187,2]
[352761426,1739297010811,-897.19,0.00013196,2]
[352761427,1739297010832,-2806.33,0.00013196,2]
[352761428,1739297010854,-1289.26188299,0.00013324,2]
[352761429,1739297010875,-1100.0,0.0001336,2]
[352761430,1739297010896,-500.0,0.0001336,2]
[352761431,1739297010917,-1000.0,0.00013424,2]
[352761432,1739297010938,-1000.0,0.00013424,2]
[352761433,1739297010960,-1000.0,0.00013424,2]
[352761434,1739297010980,-1000.0,0.00013424,2]
[352761435,1739297011002,-1000.0,0.00013424,2]
[352761436,1739297011026,-1000.0,0.00013424,2]
[352761437,1739297011048,-1000.0,0.00013424,2]
[352761438,1739297011070,-1000.0,0.00013424,2]
[352761439,1739297011092,-1000.0,0.00013424,2]
[352761440,1739297011114,-1000.0,0.00013424,2]
[352761441,1739297011135,-200.0,0.000136,2]
[352761442,1739297011157,-200.0,0.000136,2]
[352761443,1739297011178,-500.0,0.00013616,2]
[352761444,1739297011198,-2802.91,0.00013699,2]
[352761445,1739297011220,-500.0,0.00013699,2]